[Event "*** SCC Grand Prix: Titled Tuesday Blitz"]
[Site "Chess.com"]
[Date "2020.07.14"]
[Round "7"]
[White "BilodeauA"]
[Black "Duhless"]
[Result "0-1"]
[WhiteElo "2820"]
[BlackElo "3033"]
[TimeControl "180+1"]
[EndTime "11:20:27 PDT"]
[Termination "Duhless won by resignation"]

1. e4 {[%clk 0:03:00.9]} 1... Nc6 {[%clk 0:02:58]} 2. d4 {[%clk 0:02:59.3]} 2...
d5 {[%clk 0:02:57.9]} 3. e5 {[%clk 0:02:54.1]} 3... Bf5 {[%clk 0:02:57]} 4. c3
{[%clk 0:02:54.6]} 4... e6 {[%clk 0:02:54.7]} 5. Nf3 {[%clk 0:02:52]} 5... f6
{[%clk 0:02:47.1]} 6. Bd3 {[%clk 0:02:49.6]} 6... Nge7 {[%clk 0:02:46.4]} 7. O-O
{[%clk 0:02:48.8]} 7... Qd7 {[%clk 0:02:46.2]} 8. b4 {[%clk 0:02:38.9]} 8...
Bxd3 {[%clk 0:02:42.4]} 9. Qxd3 {[%clk 0:02:38.6]} 9... fxe5 {[%clk 0:02:43]}
10. dxe5 {[%clk 0:02:21.8]} 10... Ng6 {[%clk 0:02:39.4]} 11. Re1 {[%clk
0:02:20.6]} 11... a6 {[%clk 0:02:34.6]} 12. a4 {[%clk 0:02:19.7]} 12... Be7
{[%clk 0:02:33.8]} 13. Nbd2 {[%clk 0:02:12.1]} 13... O-O {[%clk 0:02:30.3]} 14.
Nb3 {[%clk 0:02:12.4]} 14... Rf5 {[%clk 0:02:28]} 15. Nbd4 {[%clk 0:02:11.6]}
15... Nxd4 {[%clk 0:02:19]} 16. Nxd4 {[%clk 0:01:42.8]} 16... Rxe5 {[%clk
0:02:18.2]} 17. Rxe5 {[%clk 0:01:43.3]} 17... Nxe5 {[%clk 0:02:17.9]} 18. Qe2
{[%clk 0:01:44.2]} 18... Bf6 {[%clk 0:02:16.4]} 19. Bg5 {[%clk 0:01:33.9]} 19...
Bxg5 {[%clk 0:01:56.9]} 20. Qxe5 {[%clk 0:01:33.7]} 20... Bf6 {[%clk 0:01:57.5]}
21. Qxe6+ {[%clk 0:01:34.2]} 21... Qxe6 {[%clk 0:01:56.8]} 22. Nxe6 {[%clk
0:01:35.1]} 22... Bxc3 {[%clk 0:01:33.7]} 23. Nxc7 {[%clk 0:01:35.4]} 23... Rc8
{[%clk 0:01:32.8]} 24. Nxd5 {[%clk 0:01:34.1]} 24... Bxa1 {[%clk 0:01:33.3]} 25.
Ne7+ {[%clk 0:01:34.5]} 25... Kf7 {[%clk 0:01:34]} 26. Nxc8 {[%clk 0:01:35.4]}
26... Ke6 {[%clk 0:01:34.6]} 27. Nb6 {[%clk 0:01:08.2]} 27... Bd4 {[%clk
0:01:21.6]} 28. Nc4 {[%clk 0:01:05.7]} 28... Kd5 {[%clk 0:01:21.5]} 29. Na5
{[%clk 0:00:35.9]} 29... b6 {[%clk 0:01:09.6]} 30. Nb7 {[%clk 0:00:32.5]} 30...
Bf6 {[%clk 0:00:54.4]} 31. b5 {[%clk 0:00:32.9]} 31... axb5 {[%clk 0:00:53.7]}
32. axb5 {[%clk 0:00:32.8]} 32... Ke6 {[%clk 0:00:53.5]} 33. f4 {[%clk
0:00:22.7]} 33... Kd7 {[%clk 0:00:52]} 34. Kf2 {[%clk 0:00:20.3]} 34... Kc7
{[%clk 0:00:51.9]} 35. Ke3 {[%clk 0:00:20.5]} 35... Kxb7 {[%clk 0:00:52.2]} 36.
Ke4 {[%clk 0:00:21.2]} 36... Kc7 {[%clk 0:00:52.4]} 37. Kd5 {[%clk 0:00:22.1]}
37... Kd7 {[%clk 0:00:52.5]} 38. g4 {[%clk 0:00:22.6]} 38... h6 {[%clk
0:00:48.6]} 39. h3 {[%clk 0:00:22]} 39... Bh4 {[%clk 0:00:44]} 40. Ke5 {[%clk
0:00:20.4]} 40... Bg3 {[%clk 0:00:41.3]} 41. Kf5 {[%clk 0:00:20.2]} 41... Kd6
{[%clk 0:00:37.1]} 42. g5 {[%clk 0:00:18.4]} 42... hxg5 {[%clk 0:00:32.6]} 43.
fxg5 {[%clk 0:00:18]} 43... Be5 {[%clk 0:00:23.9]} 44. h4 {[%clk 0:00:17.3]}
44... Ba1 {[%clk 0:00:23]} 45. h5 {[%clk 0:00:17.1]} 45... Kc5 {[%clk
0:00:22.8]} 46. Ke4 {[%clk 0:00:15.9]} 46... Kxb5 {[%clk 0:00:22.2]} 47. Kd3
{[%clk 0:00:16.1]} 47... Kc5 {[%clk 0:00:22]} 48. Kc2 {[%clk 0:00:16.1]} 48...
Be5 {[%clk 0:00:21.8]} 49. Kb3 {[%clk 0:00:16.5]} 49... b5 {[%clk 0:00:21.4]}
50. h6 {[%clk 0:00:15.9]} 50... gxh6 {[%clk 0:00:17.1]} 51. gxh6 {[%clk
0:00:16.2]} 51... b4 {[%clk 0:00:16.6]} 52. Kc2 {[%clk 0:00:16]} 52... Kc4
{[%clk 0:00:16.3]} 53. Kb1 {[%clk 0:00:16.6]} 53... Kb3 {[%clk 0:00:15.7]} 54.
h7 {[%clk 0:00:16.8]} 54... Bh8 {[%clk 0:00:14.9]} 55. Kc1 {[%clk 0:00:17.1]}
55... Ka2 {[%clk 0:00:15.8]} 0-1

[Event "*** SCC Grand Prix: Titled Tuesday Blitz"]
[Site "Chess.com"]
[Date "2020.07.14"]
[Round "7"]
[White "winniethepooh04"]
[Black "Khazieva_Elza"]
[Result "0-1"]
[WhiteElo "2162"]
[BlackElo "2334"]
[TimeControl "180+1"]
[EndTime "11:20:28 PDT"]
[Termination "Khazieva_Elza won on time"]

1. e4 {[%clk 0:02:46.9]} 1... c5 {[%clk 0:02:58.5]} 2. Nf3 {[%clk 0:02:45.2]}
2... d6 {[%clk 0:02:58.6]} 3. d4 {[%clk 0:02:45.3]} 3... cxd4 {[%clk 0:02:59.5]}
4. Nxd4 {[%clk 0:02:45.7]} 4... Nf6 {[%clk 0:02:59.9]} 5. Nc3 {[%clk 0:02:46.2]}
5... Nc6 {[%clk 0:03:00.3]} 6. Be2 {[%clk 0:02:45.6]} 6... e5 {[%clk 0:02:59.6]}
7. Nb3 {[%clk 0:02:43.2]} 7... Be6 {[%clk 0:02:59.8]} 8. O-O {[%clk 0:02:42.2]}
8... a5 {[%clk 0:02:59.7]} 9. a4 {[%clk 0:02:41.3]} 9... Be7 {[%clk 0:02:59.7]}
10. Be3 {[%clk 0:02:38.6]} 10... O-O {[%clk 0:02:49.9]} 11. f4 {[%clk
0:02:37.4]} 11... Nb4 {[%clk 0:02:23.9]} 12. f5 {[%clk 0:02:31.4]} 12... Bxb3
{[%clk 0:02:23.4]} 13. cxb3 {[%clk 0:02:31]} 13... d5 {[%clk 0:02:23.3]} 14.
exd5 {[%clk 0:02:26.5]} 14... Nfxd5 {[%clk 0:02:17.8]} 15. Nxd5 {[%clk
0:02:26.6]} 15... Nxd5 {[%clk 0:02:07.7]} 16. Bf2 {[%clk 0:02:12]} 16... Bg5
{[%clk 0:01:55.6]} 17. Bf3 {[%clk 0:01:49.5]} 17... Ne3 {[%clk 0:01:52.8]} 18.
Bxe3 {[%clk 0:01:49.7]} 18... Bxe3+ {[%clk 0:01:51.2]} 19. Kh1 {[%clk
0:01:50.2]} 19... Qb6 {[%clk 0:01:37.6]} 20. Be4 {[%clk 0:01:46.4]} 20... Qh6
{[%clk 0:01:16.3]} 21. Rf3 {[%clk 0:01:34.3]} 21... Rad8 {[%clk 0:01:04.1]} 22.
Qe2 {[%clk 0:01:31.1]} 22... Bf4 {[%clk 0:00:40.2]} 23. Rh3 {[%clk 0:01:29.1]}
23... Qf6 {[%clk 0:00:39.4]} 24. Rd3 {[%clk 0:01:19.6]} 24... Rxd3 {[%clk
0:00:35.7]} 25. Bxd3 {[%clk 0:01:19.1]} 25... Qh4 {[%clk 0:00:24]} 26. g4 {[%clk
0:01:07.3]} 26... Rd8 {[%clk 0:00:21.1]} 27. Rd1 {[%clk 0:00:55.7]} 27... h6
{[%clk 0:00:19.2]} 28. Bc2 {[%clk 0:00:54.6]} 28... Rc8 {[%clk 0:00:15.3]} 29.
f6 {[%clk 0:00:39.4]} 29... Qxf6 {[%clk 0:00:14]} 30. Qe4 {[%clk 0:00:36.8]}
30... g6 {[%clk 0:00:12.9]} 31. Bd3 {[%clk 0:00:31.1]} 31... Qh4 {[%clk
0:00:12]} 32. Qg2 {[%clk 0:00:24.9]} 32... b6 {[%clk 0:00:11.1]} 33. Bc4 {[%clk
0:00:24.6]} 33... Qf6 {[%clk 0:00:07.3]} 34. Rd7 {[%clk 0:00:19.2]} 34... Rf8
{[%clk 0:00:07.2]} 35. Bb5 {[%clk 0:00:08.8]} 35... Be3 {[%clk 0:00:06.7]} 36.
Rd1 {[%clk 0:00:06.9]} 36... Bd4 {[%clk 0:00:05.8]} 37. Rf1 {[%clk 0:00:07.2]}
37... Qe7 {[%clk 0:00:05.3]} 38. Bc4 {[%clk 0:00:05.7]} 38... e4 {[%clk
0:00:04.7]} 39. Qe2 {[%clk 0:00:03.4]} 39... e3 {[%clk 0:00:04.6]} 40. Qd3
{[%clk 0:00:03.4]} 40... Qb7+ {[%clk 0:00:03.7]} 41. Kg1 {[%clk 0:00:02]} 41...
e2+ {[%clk 0:00:04]} 0-1

[Event "*** SCC Grand Prix: Titled Tuesday Blitz"]
[Site "Chess.com"]
[Date "2020.07.14"]
[Round "7"]
[White "Lector118"]
[Black "attack2mateU"]
[Result "0-1"]
[WhiteElo "2493"]
[BlackElo "2662"]
[TimeControl "180+1"]
[EndTime "11:20:30 PDT"]
[Termination "attack2mateU won by checkmate"]

1. d4 {[%clk 0:03:00.9]} 1... Nf6 {[%clk 0:02:59]} 2. Bf4 {[%clk 0:03:00.6]}
2... c5 {[%clk 0:02:58]} 3. d5 {[%clk 0:02:59.3]} 3... d6 {[%clk 0:02:57.9]} 4.
Nc3 {[%clk 0:02:55.2]} 4... e5 {[%clk 0:02:57.3]} 5. dxe6 {[%clk 0:02:45.2]}
5... Bxe6 {[%clk 0:02:57.6]} 6. e4 {[%clk 0:02:45.6]} 6... Be7 {[%clk
0:02:50.2]} 7. Qd2 {[%clk 0:02:38.8]} 7... O-O {[%clk 0:02:45.5]} 8. O-O-O
{[%clk 0:02:34.2]} 8... Qa5 {[%clk 0:02:30.1]} 9. Nd5 {[%clk 0:02:04]} 9...
Qxd2+ {[%clk 0:01:57.2]} 10. Rxd2 {[%clk 0:02:04]} 10... Nxd5 {[%clk 0:01:07.5]}
11. exd5 {[%clk 0:02:03.5]} 11... Bd7 {[%clk 0:01:08.2]} 12. Nf3 {[%clk
0:01:46.2]} 12... Re8 {[%clk 0:01:08.2]} 13. Bd3 {[%clk 0:01:41.1]} 13... Bf8
{[%clk 0:01:02.1]} 14. Ng5 {[%clk 0:01:31.9]} 14... h6 {[%clk 0:00:47.2]} 15.
Ne4 {[%clk 0:01:32.1]} 15... c4 {[%clk 0:00:46.9]} 16. Nxd6 {[%clk 0:01:18]}
16... Bxd6 {[%clk 0:00:45.6]} 17. Bxd6 {[%clk 0:01:17.8]} 17... cxd3 {[%clk
0:00:46.1]} 18. Rxd3 {[%clk 0:01:17.5]} 18... Bf5 {[%clk 0:00:34.6]} 19. Rb3
{[%clk 0:01:02.6]} 19... b6 {[%clk 0:00:23]} 20. c4 {[%clk 0:01:01.2]} 20... Nd7
{[%clk 0:00:23.5]} 21. Kd2 {[%clk 0:00:50.2]} 21... Rac8 {[%clk 0:00:22.4]} 22.
Rc3 {[%clk 0:00:48.2]} 22... Re4 {[%clk 0:00:20.2]} 23. b3 {[%clk 0:00:46.7]}
23... b5 {[%clk 0:00:19.5]} 24. Rhc1 {[%clk 0:00:32.5]} 24... Rce8 {[%clk
0:00:15.5]} 25. Re3 {[%clk 0:00:32.1]} 25... Rd4+ {[%clk 0:00:07.6]} 26. Ke2
{[%clk 0:00:32.5]} 26... Rxe3+ {[%clk 0:00:03.6]} 27. fxe3 {[%clk 0:00:29.3]}
27... Rd3 {[%clk 0:00:03.2]} 28. g4 {[%clk 0:00:15.9]} 28... Be4 {[%clk
0:00:03]} 29. Bf4 {[%clk 0:00:08.7]} 29... Nb6 {[%clk 0:00:01.9]} 30. cxb5
{[%clk 0:00:04.8]} 30... Rxd5 {[%clk 0:00:01.5]} 31. Rc7 {[%clk 0:00:04.7]}
31... Rxb5 {[%clk 0:00:01.3]} 32. Rxa7 {[%clk 0:00:04.9]} 32... Nd5 {[%clk
0:00:01.7]} 33. Ra4 {[%clk 0:00:04.9]} 33... Nc3+ {[%clk 0:00:01.8]} 34. Kd2
{[%clk 0:00:05.5]} 34... Nxa4 {[%clk 0:00:02.7]} 35. bxa4 {[%clk 0:00:05.1]}
35... Rc5 {[%clk 0:00:03.3]} 36. a5 {[%clk 0:00:04.7]} 36... Rc2+ {[%clk
0:00:04.2]} 37. Kd1 {[%clk 0:00:05.4]} 37... Rxa2 {[%clk 0:00:04.8]} 38. Bc7
{[%clk 0:00:06.2]} 38... g5 {[%clk 0:00:04.9]} 39. Bb6 {[%clk 0:00:06.3]} 39...
Bf3+ {[%clk 0:00:05.1]} 40. Ke1 {[%clk 0:00:06.8]} 40... Bxg4 {[%clk 0:00:06]}
41. Kf1 {[%clk 0:00:07]} 41... Be6 {[%clk 0:00:06.9]} 42. Kg1 {[%clk 0:00:07.9]}
42... Kh7 {[%clk 0:00:07.4]} 43. h4 {[%clk 0:00:08.6]} 43... Kg6 {[%clk
0:00:08.3]} 44. hxg5 {[%clk 0:00:09.5]} 44... hxg5 {[%clk 0:00:08.9]} 45. Kf1
{[%clk 0:00:09.7]} 45... Kf5 {[%clk 0:00:09.8]} 46. Kg1 {[%clk 0:00:10.4]} 46...
Ke4 {[%clk 0:00:10.7]} 47. Kf1 {[%clk 0:00:11.3]} 47... Kf3 {[%clk 0:00:11.5]}
48. Kg1 {[%clk 0:00:12.2]} 48... g4 {[%clk 0:00:12]} 49. Bc7 {[%clk 0:00:11.9]}
49... g3 {[%clk 0:00:12.9]} 50. Bxg3 {[%clk 0:00:11.3]} 50... Kxg3 {[%clk
0:00:12.9]} 51. Kf1 {[%clk 0:00:12.2]} 51... Kf3 {[%clk 0:00:13.2]} 52. Ke1
{[%clk 0:00:12.4]} 52... Kxe3 {[%clk 0:00:13.7]} 53. Kf1 {[%clk 0:00:12.5]}
53... f5 {[%clk 0:00:13.2]} 54. Kg1 {[%clk 0:00:12.8]} 54... f4 {[%clk
0:00:14.1]} 55. a6 {[%clk 0:00:13.5]} 55... f3 {[%clk 0:00:15]} 56. a7 {[%clk
0:00:14.3]} 56... f2+ {[%clk 0:00:15]} 57. Kg2 {[%clk 0:00:14.9]} 57... Bd5+
{[%clk 0:00:14.4]} 58. Kg3 {[%clk 0:00:15.3]} 58... f1=Q {[%clk 0:00:14.5]} 59.
a8=Q {[%clk 0:00:15.3]} 59... Rg2+ {[%clk 0:00:14.3]} 60. Kh4 {[%clk 0:00:16.1]}
60... Qh1# {[%clk 0:00:14.9]} 0-1

[Event "*** SCC Grand Prix: Titled Tuesday Blitz"]
[Site "Chess.com"]
[Date "2020.07.14"]
[Round "7"]
[White "Ranindu2003"]
[Black "Omk124"]
[Result "1-0"]
[WhiteElo "2616"]
[BlackElo "2387"]
[TimeControl "180+1"]
[EndTime "11:20:31 PDT"]
[Termination "Ranindu2003 won by resignation"]

1. e4 {[%clk 0:03:00.2]} 1... g6 {[%clk 0:02:58.9]} 2. d4 {[%clk 0:02:59.8]}
2... Bg7 {[%clk 0:02:59.2]} 3. Nc3 {[%clk 0:03:00.2]} 3... c6 {[%clk 0:02:59.3]}
4. Nf3 {[%clk 0:02:56.5]} 4... d6 {[%clk 0:02:59.4]} 5. Bd3 {[%clk 0:02:39.1]}
5... Nf6 {[%clk 0:02:58.8]} 6. O-O {[%clk 0:02:38.6]} 6... O-O {[%clk
0:02:58.8]} 7. Qe2 {[%clk 0:02:38.4]} 7... Nbd7 {[%clk 0:02:58.1]} 8. h3 {[%clk
0:02:38.4]} 8... e5 {[%clk 0:02:57.9]} 9. Rd1 {[%clk 0:02:36.6]} 9... Re8 {[%clk
0:02:57.3]} 10. dxe5 {[%clk 0:02:33.1]} 10... dxe5 {[%clk 0:02:58.2]} 11. a4
{[%clk 0:02:31.5]} 11... Qe7 {[%clk 0:02:57.7]} 12. Bc4 {[%clk 0:02:30.8]} 12...
Nf8 {[%clk 0:02:57.7]} 13. a5 {[%clk 0:02:29]} 13... h6 {[%clk 0:02:56.4]} 14.
Be3 {[%clk 0:02:28.6]} 14... Be6 {[%clk 0:02:53.2]} 15. Rdb1 {[%clk 0:02:23.2]}
15... Nh5 {[%clk 0:02:52]} 16. b4 {[%clk 0:02:04.2]} 16... Nf4 {[%clk 0:02:48]}
17. Qf1 {[%clk 0:02:04.1]} 17... a6 {[%clk 0:02:38.5]} 18. Bc5 {[%clk
0:02:01.2]} 18... Qf6 {[%clk 0:02:31.7]} 19. Na4 {[%clk 0:01:53]} 19... Bxc4
{[%clk 0:02:27.8]} 20. Qxc4 {[%clk 0:01:51.8]} 20... Nxh3+ {[%clk 0:02:28.6]}
21. Kf1 {[%clk 0:01:48.7]} 21... Nf4 {[%clk 0:02:23]} 22. Nb6 {[%clk 0:01:47.1]}
22... Rad8 {[%clk 0:02:22]} 23. Rd1 {[%clk 0:01:46.3]} 23... N8e6 {[%clk
0:02:21.2]} 24. Nd7 {[%clk 0:01:41.6]} 24... Rxd7 {[%clk 0:02:07.2]} 25. Rxd7
{[%clk 0:01:42.5]} 25... g5 {[%clk 0:01:56.7]} 26. Bd6 {[%clk 0:01:20.2]} 26...
g4 {[%clk 0:01:19.8]} 27. Ng1 {[%clk 0:00:42]} 27... Nd4 {[%clk 0:01:01.2]} 28.
c3 {[%clk 0:00:38.2]} 28... Nb5 {[%clk 0:00:58.2]} 29. Bc5 {[%clk 0:00:36.2]}
29... Nh5 {[%clk 0:00:21.1]} 30. Qd3 {[%clk 0:00:35.1]} 30... Nf4 {[%clk
0:00:19]} 31. Qg3 {[%clk 0:00:33]} 31... h5 {[%clk 0:00:17.5]} 32. Ne2 {[%clk
0:00:22.6]} 32... Ng6 {[%clk 0:00:16.6]} 33. c4 {[%clk 0:00:20.8]} 33... Qe6
{[%clk 0:00:13.3]} 34. Qd3 {[%clk 0:00:16.6]} 34... Nd4 {[%clk 0:00:12.4]} 35.
Rd6 {[%clk 0:00:15.6]} 35... Qc8 {[%clk 0:00:06.3]} 36. Nxd4 {[%clk 0:00:15.8]}
36... exd4 {[%clk 0:00:06.8]} 37. Bxd4 {[%clk 0:00:16.5]} 37... Nf4 {[%clk
0:00:07.4]} 38. Qe3 {[%clk 0:00:15.6]} 38... Bxd4 {[%clk 0:00:05.6]} 39. Qxd4
{[%clk 0:00:16.5]} 39... Ne6 {[%clk 0:00:06]} 40. Qf6 {[%clk 0:00:15.8]} 40...
Ng7 {[%clk 0:00:04.1]} 41. Rad1 {[%clk 0:00:15]} 41... Qc7 {[%clk 0:00:01.5]}
42. Rd8 {[%clk 0:00:14.2]} 42... Rxd8 {[%clk 0:00:02.2]} 43. Rxd8+ {[%clk
0:00:14.7]} 43... Qxd8 {[%clk 0:00:03.1]} 44. Qxd8+ {[%clk 0:00:14.8]} 44... Kh7
{[%clk 0:00:04]} 45. Qc7 {[%clk 0:00:14.5]} 45... Kg6 {[%clk 0:00:04.4]} 46.
Qxb7 {[%clk 0:00:14.7]} 1-0

[Event "*** SCC Grand Prix: Titled Tuesday Blitz"]
[Site "Chess.com"]
[Date "2020.07.14"]
[Round "7"]
[White "13MiRacLe"]
[Black "vova-79"]
[Result "1/2-1/2"]
[WhiteElo "2627"]
[BlackElo "2476"]
[TimeControl "180+1"]
[EndTime "11:20:31 PDT"]
[Termination "Game drawn by repetition"]

1. e4 {[%clk 0:03:00.9]} 1... e6 {[%clk 0:02:58.3]} 2. d4 {[%clk 0:03:00.5]}
2... d5 {[%clk 0:02:54.9]} 3. Nc3 {[%clk 0:03:00.2]} 3... dxe4 {[%clk
0:02:54.8]} 4. Nxe4 {[%clk 0:03:00.1]} 4... Nd7 {[%clk 0:02:55.4]} 5. g3 {[%clk
0:02:58.6]} 5... Ngf6 {[%clk 0:02:56.3]} 6. Nxf6+ {[%clk 0:02:58.9]} 6... Nxf6
{[%clk 0:02:56.8]} 7. Bg2 {[%clk 0:02:59.4]} 7... e5 {[%clk 0:02:57]} 8. Nf3
{[%clk 0:02:33.5]} 8... exd4 {[%clk 0:02:54.2]} 9. Qxd4 {[%clk 0:02:29.8]} 9...
Be7 {[%clk 0:02:52.8]} 10. Qxd8+ {[%clk 0:02:28.6]} 10... Bxd8 {[%clk
0:02:52.6]} 11. Bf4 {[%clk 0:02:28.9]} 11... O-O {[%clk 0:02:51.2]} 12. O-O-O
{[%clk 0:02:28.8]} 12... c6 {[%clk 0:02:49.6]} 13. Rhe1 {[%clk 0:02:24]} 13...
Bb6 {[%clk 0:02:25.3]} 14. Be3 {[%clk 0:02:14.2]} 14... Bg4 {[%clk 0:02:20.8]}
15. h3 {[%clk 0:02:07.8]} 15... Bxf3 {[%clk 0:02:19.7]} 16. Bxf3 {[%clk
0:02:08.3]} 16... Rfe8 {[%clk 0:02:16.1]} 17. Bxb6 {[%clk 0:01:59.2]} 17... axb6
{[%clk 0:02:15.2]} 18. a3 {[%clk 0:01:58.6]} 18... Rxe1 {[%clk 0:02:04.2]} 19.
Rxe1 {[%clk 0:01:58.5]} 19... Re8 {[%clk 0:02:04]} 20. Rd1 {[%clk 0:01:55.4]}
20... Kf8 {[%clk 0:02:03]} 21. c4 {[%clk 0:01:52.9]} 21... Ke7 {[%clk
0:02:00.9]} 22. Kc2 {[%clk 0:01:49.8]} 22... Rd8 {[%clk 0:02:00.6]} 23. Re1+
{[%clk 0:01:46.2]} 23... Kd6 {[%clk 0:01:59.3]} 24. Kc3 {[%clk 0:01:44]} 24...
h6 {[%clk 0:01:56.6]} 25. b4 {[%clk 0:01:33.9]} 25... Re8 {[%clk 0:01:54.3]} 26.
Rd1+ {[%clk 0:01:30.5]} 26... Kc7 {[%clk 0:01:53.9]} 27. Rd4 {[%clk 0:01:17.3]}
27... Ra8 {[%clk 0:01:49.6]} 28. Kb3 {[%clk 0:01:15.2]} 28... Rd8 {[%clk
0:01:49.2]} 29. Kc3 {[%clk 0:01:09.2]} 29... Ra8 {[%clk 0:01:46]} 30. Kb3 {[%clk
0:01:06.8]} 30... Rd8 {[%clk 0:01:45.3]} 31. Rxd8 {[%clk 0:01:06.7]} 31... Kxd8
{[%clk 0:01:44.8]} 32. Kc3 {[%clk 0:01:05.8]} 32... Kd7 {[%clk 0:01:28.3]} 33.
Kd4 {[%clk 0:01:05]} 33... Kd6 {[%clk 0:01:28]} 34. c5+ {[%clk 0:00:56.7]} 34...
bxc5+ {[%clk 0:01:28.9]} 35. bxc5+ {[%clk 0:00:56.6]} 35... Ke7 {[%clk
0:01:17.3]} 36. a4 {[%clk 0:00:52.2]} 36... Kd8 {[%clk 0:00:49]} 37. a5 {[%clk
0:00:47.9]} 37... Kc7 {[%clk 0:00:46.7]} 38. h4 {[%clk 0:00:47.5]} 38... Kd7
{[%clk 0:00:42.7]} 39. Bd1 {[%clk 0:00:41.1]} 39... Ne8 {[%clk 0:00:41.2]} 40.
Bb3 {[%clk 0:00:36.8]} 40... Ke7 {[%clk 0:00:39.9]} 41. g4 {[%clk 0:00:23.9]}
41... Nc7 {[%clk 0:00:38.8]} 42. f4 {[%clk 0:00:18.9]} 42... Ne6+ {[%clk
0:00:18.4]} 43. Bxe6 {[%clk 0:00:18.7]} 43... Kxe6 {[%clk 0:00:19.3]} 44. f5+
{[%clk 0:00:12.6]} 44... Kf6 {[%clk 0:00:18.9]} 45. Ke4 {[%clk 0:00:12.8]} 45...
g5 {[%clk 0:00:16.4]} 46. fxg6 {[%clk 0:00:09.3]} 46... fxg6 {[%clk 0:00:15.5]}
47. Kf4 {[%clk 0:00:04.4]} 47... g5+ {[%clk 0:00:14.9]} 48. hxg5+ {[%clk
0:00:02.9]} 48... hxg5+ {[%clk 0:00:15.8]} 49. Ke4 {[%clk 0:00:03.4]} 49... Ke6
{[%clk 0:00:16]} 50. Kd4 {[%clk 0:00:04.1]} 50... Kf6 {[%clk 0:00:16.1]} 51. Ke4
{[%clk 0:00:02.9]} 51... Ke6 {[%clk 0:00:16.2]} 52. Kd4 {[%clk 0:00:03.2]} 52...
Kf6 {[%clk 0:00:16.2]} 53. Ke4 {[%clk 0:00:03.4]} 1/2-1/2

[Event "*** SCC Grand Prix: Titled Tuesday Blitz"]
[Site "Chess.com"]
[Date "2020.07.14"]
[Round "7"]
[White "MFBerna"]
[Black "ItsCheckM8Mate"]
[Result "0-1"]
[WhiteElo "2414"]
[BlackElo "2269"]
[TimeControl "180+1"]
[EndTime "11:20:33 PDT"]
[Termination "ItsCheckM8Mate won on time"]

1. e4 {[%clk 0:03:00.9]} 1... e5 {[%clk 0:02:59.4]} 2. Nf3 {[%clk 0:03:01.1]}
2... Nc6 {[%clk 0:02:59.6]} 3. Bb5 {[%clk 0:03:00.8]} 3... a6 {[%clk 0:02:55.8]}
4. Ba4 {[%clk 0:02:59.5]} 4... Nf6 {[%clk 0:02:56]} 5. O-O {[%clk 0:02:59.1]}
5... Nxe4 {[%clk 0:02:55.9]} 6. d4 {[%clk 0:02:59]} 6... b5 {[%clk 0:02:55.8]}
7. Bb3 {[%clk 0:02:58.9]} 7... d5 {[%clk 0:02:56]} 8. dxe5 {[%clk 0:02:58.8]}
8... Be6 {[%clk 0:02:56.2]} 9. c3 {[%clk 0:02:57.5]} 9... Be7 {[%clk 0:02:54.6]}
10. Nbd2 {[%clk 0:02:52.8]} 10... Nc5 {[%clk 0:02:54.7]} 11. Bc2 {[%clk
0:02:52.4]} 11... d4 {[%clk 0:02:54.7]} 12. cxd4 {[%clk 0:02:29.6]} 12... Nxd4
{[%clk 0:02:53.8]} 13. Nxd4 {[%clk 0:02:27.7]} 13... Qxd4 {[%clk 0:02:54.7]} 14.
Nf3 {[%clk 0:02:25.2]} 14... Qxd1 {[%clk 0:02:53.7]} 15. Rxd1 {[%clk 0:02:26.1]}
15... Nd7 {[%clk 0:02:43.9]} 16. Nd4 {[%clk 0:02:08.7]} 16... Nxe5 {[%clk
0:02:23.5]} 17. Re1 {[%clk 0:01:58.5]} 17... Bd6 {[%clk 0:02:11.5]} 18. f4
{[%clk 0:01:28.7]} 18... Bc5 {[%clk 0:02:08.3]} 19. Be3 {[%clk 0:01:26.8]} 19...
Nc4 {[%clk 0:01:53.1]} 20. Bf2 {[%clk 0:00:46.8]} 20... O-O {[%clk 0:01:30.3]}
21. Nxe6 {[%clk 0:00:42.2]} 21... Bxf2+ {[%clk 0:01:29.7]} 22. Kxf2 {[%clk
0:00:43.1]} 22... fxe6 {[%clk 0:01:29.7]} 23. Kg3 {[%clk 0:00:35]} 23... Nxb2
{[%clk 0:01:23]} 24. Rxe6 {[%clk 0:00:31.5]} 24... c5 {[%clk 0:01:19.3]} 25.
Rae1 {[%clk 0:00:23.7]} 25... c4 {[%clk 0:01:17.3]} 26. f5 {[%clk 0:00:19.3]}
26... Nd3 {[%clk 0:01:06.5]} 27. Bxd3 {[%clk 0:00:18.6]} 27... cxd3 {[%clk
0:01:07]} 28. Rd1 {[%clk 0:00:17.5]} 28... Rad8 {[%clk 0:01:03.2]} 29. Kf4
{[%clk 0:00:14.4]} 29... Rd5 {[%clk 0:00:56.8]} 30. g4 {[%clk 0:00:13.6]} 30...
a5 {[%clk 0:00:56.7]} 31. Ke4 {[%clk 0:00:12.6]} 31... Rfd8 {[%clk 0:00:56.1]}
32. Rd2 {[%clk 0:00:11.2]} 32... b4 {[%clk 0:00:55.4]} 33. g5 {[%clk 0:00:09.3]}
33... a4 {[%clk 0:00:54]} 34. f6 {[%clk 0:00:08]} 34... gxf6 {[%clk 0:00:50.5]}
35. Rxf6 {[%clk 0:00:08.9]} 35... Rxg5 {[%clk 0:00:45.3]} 36. Rxd3 {[%clk
0:00:08.6]} 36... Rg4+ {[%clk 0:00:40.5]} 37. Kf5 {[%clk 0:00:08]} 37... Rxd3
{[%clk 0:00:39.4]} 38. Kxg4 {[%clk 0:00:08.9]} 38... Rd2 {[%clk 0:00:26.7]} 39.
Rb6 {[%clk 0:00:07.2]} 39... Rxh2 {[%clk 0:00:21.2]} 40. Rxb4 {[%clk 0:00:07.1]}
40... Rxa2 {[%clk 0:00:21.3]} 41. Rb7 {[%clk 0:00:07.1]} 41... Ra1 {[%clk
0:00:18.9]} 42. Kg5 {[%clk 0:00:07]} 42... a3 {[%clk 0:00:17.9]} 43. Kf6 {[%clk
0:00:07.3]} 43... h5 {[%clk 0:00:16.5]} 44. Kg6 {[%clk 0:00:03]} 44... Kf8
{[%clk 0:00:16.7]} 45. Kf6 {[%clk 0:00:02.5]} 45... Ke8 {[%clk 0:00:16.7]} 46.
Ke6 {[%clk 0:00:02.1]} 46... Kd8 {[%clk 0:00:17]} 47. Kd6 {[%clk 0:00:02.6]}
47... Kc8 {[%clk 0:00:17.3]} 48. Ra7 {[%clk 0:00:02.3]} 48... a2 {[%clk
0:00:17.4]} 49. Kc6 {[%clk 0:00:01.1]} 49... Rc1+ {[%clk 0:00:16.7]} 0-1